[Event "Titled Tuesday Blitz July 18 Late 2023"]
[White "Salazar Farias, Luis German"]
[Black "Rodriguez Santiago, Jaime"]
[WhiteFideId "3902170"]
[BlackFideId "3100898"]
[WhiteElo "2490"]
[BlackElo "2359"]
[Result "1-0"]
[Round "6"]
[TimeControl "180+2"]
[Date "2023.07.18"]
[WhiteClock "0:00:06"]
[BlackClock "0:00:04"]
[Board "110"]

1. d4 {[%clk 0:01:17]}  Nf6 {[%clk 0:02:55]} 2. c4 {[%clk 0:01:17]}  e6 {[%clk 0:02:55]} 3. Nf3 {[%clk 0:01:16]}  d5 {[%clk 0:02:55]} 4. g3 {[%clk 0:01:16]}  dxc4 {[%clk 0:02:53]} 5. Bg2 {[%clk 0:01:17]}  c5 {[%clk 0:02:54]} 6. O-O {[%clk 0:01:14]}  Nc6 {[%clk 0:02:54]} 7. dxc5 {[%clk 0:01:14]}  Qxd1 {[%clk 0:02:52]} 8. Rxd1 {[%clk 0:01:15]}  Bxc5 {[%clk 0:02:52]} 9. Nbd2 {[%clk 0:01:15]}  c3 {[%clk 0:02:52]} 10. bxc3 {[%clk 0:01:16]}  O-O {[%clk 0:02:52]} 11. Nb3 {[%clk 0:01:17]}  Be7 {[%clk 0:02:52]} 12. Nfd4 {[%clk 0:01:14]}  Nxd4 {[%clk 0:02:36]} 13. cxd4 {[%clk 0:01:15]}  Nd5 {[%clk 0:02:27]} 14. Bd2 {[%clk 0:00:58]}  f5 {[%clk 0:02:25]} 15. Na5 {[%clk 0:00:53]}  Bf6 {[%clk 0:02:07]} 16. e3 {[%clk 0:00:49]}  b6 {[%clk 0:02:06]} 17. Nc6 {[%clk 0:00:48]}  Bb7 {[%clk 0:02:05]} 18. Nb4 {[%clk 0:00:43]}  Rfd8 {[%clk 0:01:58]} 19. a4 {[%clk 0:00:27]}  a5 {[%clk 0:01:50]} 20. Nxd5 {[%clk 0:00:25]}  Bxd5 {[%clk 0:01:50]} 21. Bxd5 {[%clk 0:00:22]}  Rxd5 {[%clk 0:01:49]} 22. Rab1 {[%clk 0:00:23]}  Bd8 {[%clk 0:01:49]} 23. Rdc1 {[%clk 0:00:21]}  Kf7 {[%clk 0:01:30]} 24. Kf1 {[%clk 0:00:19]}  Ke7 {[%clk 0:01:29]} 25. Ke2 {[%clk 0:00:19]}  Kd7 {[%clk 0:01:28]} 26. Kd3 {[%clk 0:00:19]}  Rb8 {[%clk 0:01:25]} 27. f3 {[%clk 0:00:18]}  Bf6 {[%clk 0:00:58]} 28. Rc4 {[%clk 0:00:18]}  b5 {[%clk 0:00:54]} 29. axb5 {[%clk 0:00:16]}  Rdxb5 {[%clk 0:00:55]} 30. Rxb5 {[%clk 0:00:16]}  Rxb5 {[%clk 0:00:55]} 31. Ra4 {[%clk 0:00:16]}  Bd8 {[%clk 0:00:55]} 32. e4 {[%clk 0:00:16]}  Kc6 {[%clk 0:00:50]} 33. h4 {[%clk 0:00:13]}  Rb3+ {[%clk 0:00:47]} 34. Bc3 {[%clk 0:00:10]}  Kb5 {[%clk 0:00:47]} 35. Rc4 {[%clk 0:00:07]}  a4 {[%clk 0:00:38]} 36. Rc8 {[%clk 0:00:05]}  Ba5 {[%clk 0:00:30]} 37. Rb8+ {[%clk 0:00:05]}  Bb6 {[%clk 0:00:30]} 38. Kc2 {[%clk 0:00:02]}  Kc4 {[%clk 0:00:23]} 39. Rc8+ {[%clk 0:00:02]}  Kb5 {[%clk 0:00:23]} 40. Rb8 {[%clk 0:00:03]}  Kc6 {[%clk 0:00:19]} 41. exf5 {[%clk 0:00:03]}  exf5 {[%clk 0:00:19]} 42. Rg8 {[%clk 0:00:03]}  g6 {[%clk 0:00:15]} 43. Rg7 {[%clk 0:00:04]}  Bc7 {[%clk 0:00:12]} 44. Rxh7 {[%clk 0:00:03]}  Bxg3 {[%clk 0:00:13]} 45. Rg7 {[%clk 0:00:03]}  Bxh4 {[%clk 0:00:12]} 46. Rxg6+ {[%clk 0:00:04]}  Kd5 {[%clk 0:00:12]} 47. Ra6 {[%clk 0:00:04]}  Rb7 {[%clk 0:00:06]} 48. Ra5+ {[%clk 0:00:03]}  Ke6 {[%clk 0:00:05]} 49. Rxa4 {[%clk 0:00:04]}  Rc7 {[%clk 0:00:05]} 50. Kd3 {[%clk 0:00:04]}  f4 {[%clk 0:00:04]} 51. Ra6+ {[%clk 0:00:03]}  Kf5 {[%clk 0:00:04]} 52. Ra5+ {[%clk 0:00:03]}  Ke6 {[%clk 0:00:04]} 53. d5+ {[%clk 0:00:03]}  Kf5 {[%clk 0:00:04]} 54. Bd4 {[%clk 0:00:03]}  Rc1 {[%clk 0:00:03]} 55. d6+ {[%clk 0:00:03]}  Ke6 {[%clk 0:00:03]} 56. Bc5 {[%clk 0:00:04]}  Rd1+ {[%clk 0:00:02]} 57. Ke4 {[%clk 0:00:03]}  Bg3 {[%clk 0:00:02]} 58. Ra7 {[%clk 0:00:03]}  Re1+ {[%clk 0:00:02]} 59. Kd3 {[%clk 0:00:03]}  Rd1+ {[%clk 0:00:03]} 60. Kc4 {[%clk 0:00:03]}  Rc1+ {[%clk 0:00:03]} 61. Kb5 {[%clk 0:00:04]}  Rd1 {[%clk 0:00:04]} 62. Re7+ {[%clk 0:00:03]}  Kf6 {[%clk 0:00:03]} 63. Re4 {[%clk 0:00:04]}  Bh2 {[%clk 0:00:02]} 64. Kc6 {[%clk 0:00:04]}  Rd2 {[%clk 0:00:03]} 65. Rc4 {[%clk 0:00:04]}  Ke6 {[%clk 0:00:03]} 66. Rc1 {[%clk 0:00:04]}  Bg3 {[%clk 0:00:02]} 67. Rc4 {[%clk 0:00:03]}  Rd1 {[%clk 0:00:02]} 68. d7 {[%clk 0:00:03]}  Rd2 {[%clk 0:00:02]} 69. Re4+ {[%clk 0:00:04]}  Kf7 {[%clk 0:00:03]} 70. Bb6 {[%clk 0:00:04]}  Bh4 {[%clk 0:00:03]} 71. Re8 {[%clk 0:00:04]}  Bd8 {[%clk 0:00:04]} 72. Rxd8 {[%clk 0:00:04]}  Rc2+ {[%clk 0:00:04]} 73. Bc5 {[%clk 0:00:04]}  Rb2 {[%clk 0:00:05]} 74. Rc8 {[%clk 0:00:05]}  Rd2 {[%clk 0:00:06]} 75. Rc7 {[%clk 0:00:06]}  Kf6 {[%clk 0:00:06]} 76. Rc8 {[%clk 0:00:06]}  Kg6 {[%clk 0:00:05]} 77. d8=Q {[%clk 0:00:06]}  Rxd8 {[%clk 0:00:04]} 78. Rxd8 {[%clk 0:00:06]} 1-0


[Site "https://www.chess.com"]

[Event "Titled Tuesday Blitz July 18 Late 2023"]
[White "Bogaudinov, Rushan"]
[Black "Melnichuk, Mikhail"]
[WhiteFideId "4129288"]
[BlackFideId "14117533"]
[WhiteElo "2358"]
[BlackElo "2488"]
[Result "1-0"]
[Round "6"]
[TimeControl "180+2"]
[Date "2023.07.18"]
[WhiteClock "0:00:09"]
[BlackClock "0:00:09"]
[Board "111"]

1. a3 {[%clk 0:02:48]}  Nf6 {[%clk 0:02:58]} 2. e3 {[%clk 0:02:46]}  d5 {[%clk 0:02:57]} 3. Nf3 {[%clk 0:02:46]}  g6 {[%clk 0:02:54]} 4. b4 {[%clk 0:02:45]}  Bg7 {[%clk 0:02:55]} 5. Bb2 {[%clk 0:02:45]}  O-O {[%clk 0:02:55]} 6. Be2 {[%clk 0:02:43]}  c6 {[%clk 0:02:49]} 7. O-O {[%clk 0:02:43]}  Re8 {[%clk 0:02:48]} 8. d4 {[%clk 0:02:42]}  Bf5 {[%clk 0:02:46]} 9. c4 {[%clk 0:02:41]}  Nbd7 {[%clk 0:02:45]} 10. Nc3 {[%clk 0:02:36]}  Ne4 {[%clk 0:02:41]} 11. cxd5 {[%clk 0:02:31]}  Nxc3 {[%clk 0:02:40]} 12. Bxc3 {[%clk 0:02:32]}  cxd5 {[%clk 0:02:40]} 13. Qb3 {[%clk 0:02:27]}  Nb6 {[%clk 0:02:38]} 14. Rfc1 {[%clk 0:02:16]}  Rc8 {[%clk 0:02:37]} 15. Bb2 {[%clk 0:02:15]}  Bg4 {[%clk 0:02:23]} 16. a4 {[%clk 0:02:06]}  Qd7 {[%clk 0:02:13]} 17. a5 {[%clk 0:02:00]}  Bxf3 {[%clk 0:02:12]} 18. gxf3 {[%clk 0:01:54]}  Na8 {[%clk 0:01:57]} 19. Rxc8 {[%clk 0:01:53]}  Rxc8 {[%clk 0:01:56]} 20. Rc1 {[%clk 0:01:54]}  e6 {[%clk 0:01:51]} 21. b5 {[%clk 0:01:44]}  Rxc1+ {[%clk 0:01:48]} 22. Bxc1 {[%clk 0:01:45]}  Nc7 {[%clk 0:01:46]} 23. b6 {[%clk 0:01:38]}  axb6 {[%clk 0:01:44]} 24. axb6 {[%clk 0:01:38]}  Qc6 {[%clk 0:01:26]} 25. Ba3 {[%clk 0:01:25]}  Ne8 {[%clk 0:01:12]} 26. Qb5 {[%clk 0:01:14]}  Qc8 {[%clk 0:01:00]} 27. Qb4 {[%clk 0:01:02]}  Nf6 {[%clk 0:00:55]} 28. Qe7 {[%clk 0:00:58]}  Bf8 {[%clk 0:00:44]} 29. Qc7 {[%clk 0:00:54]}  Qa8 {[%clk 0:00:37]} 30. Bc5 {[%clk 0:00:44]}  Ne8 {[%clk 0:00:24]} 31. Qe5 {[%clk 0:00:35]}  Qd8 {[%clk 0:00:17]} 32. Bb5 {[%clk 0:00:28]}  Bd6 {[%clk 0:00:16]} 33. Bxd6 {[%clk 0:00:20]}  Nxd6 {[%clk 0:00:16]} 34. Bf1 {[%clk 0:00:15]}  Qxb6 {[%clk 0:00:16]} 35. h4 {[%clk 0:00:15]}  h5 {[%clk 0:00:15]} 36. Bh3 {[%clk 0:00:15]}  Qc7 {[%clk 0:00:06]} 37. Kg2 {[%clk 0:00:14]}  Qd7 {[%clk 0:00:06]} 38. e4 {[%clk 0:00:12]}  dxe4 {[%clk 0:00:05]} 39. fxe4 {[%clk 0:00:13]}  Nc4 {[%clk 0:00:02]} 40. Qc5 {[%clk 0:00:13]}  Nd2 {[%clk 0:00:01]} 41. f3 {[%clk 0:00:11]}  Nxf3 {[%clk 0:00:01]} 42. Kxf3 {[%clk 0:00:11]}  Qc6 {[%clk 0:00:01]} 43. Qxc6 {[%clk 0:00:10]}  bxc6 {[%clk 0:00:02]} 44. e5 {[%clk 0:00:10]}  Kf8 {[%clk 0:00:02]} 45. Kf4 {[%clk 0:00:10]}  Ke7 {[%clk 0:00:03]} 46. Bg2 {[%clk 0:00:09]}  f6 {[%clk 0:00:03]} 47. exf6+ {[%clk 0:00:09]}  Kxf6 {[%clk 0:00:03]} 48. Bxc6 {[%clk 0:00:10]}  Ke7 {[%clk 0:00:04]} 49. Be4 {[%clk 0:00:10]}  Kf6 {[%clk 0:00:04]} 50. Bd3 {[%clk 0:00:10]}  Kf7 {[%clk 0:00:03]} 51. Kg5 {[%clk 0:00:10]}  Ke7 {[%clk 0:00:04]} 52. Bxg6 {[%clk 0:00:10]}  Kd6 {[%clk 0:00:05]} 53. Be4 {[%clk 0:00:10]}  e5 {[%clk 0:00:04]} 54. d5 {[%clk 0:00:11]}  Kc5 {[%clk 0:00:04]} 55. Kxh5 {[%clk 0:00:09]}  Kd4 {[%clk 0:00:05]} 56. Bg2 {[%clk 0:00:09]}  e4 {[%clk 0:00:05]} 57. Bxe4 {[%clk 0:00:09]}  Kxe4 {[%clk 0:00:06]} 58. d6 {[%clk 0:00:09]}  Ke5 {[%clk 0:00:07]} 59. d7 {[%clk 0:00:10]}  Ke6 {[%clk 0:00:08]} 60. d8=Q {[%clk 0:00:10]}  Kf7 {[%clk 0:00:09]} 61. Qd7+ {[%clk 0:00:10]}  Kf6 {[%clk 0:00:09]} 62. Qd6+ {[%clk 0:00:10]}  Kf5 {[%clk 0:00:09]} 63. Qg6+ {[%clk 0:00:09]}  Ke5 {[%clk 0:00:10]} 64. Qg5+ {[%clk 0:00:09]}  Ke6 {[%clk 0:00:10]} 65. Kg6 {[%clk 0:00:09]}  Kd7 {[%clk 0:00:11]} 66. h5 {[%clk 0:00:09]}  Ke6 {[%clk 0:00:12]} 67. Qf6+ {[%clk 0:00:09]}  Kd7 {[%clk 0:00:09]} 68. h6 {[%clk 0:00:09]} 1-0


[Site "https://www.chess.com"]

[Event "Titled Tuesday Blitz July 18 Late 2023"]
[White "K2JW"]
[Black "Rodriguez Fontecha, Marcos"]
[BlackFideId "2256576"]
[WhiteElo "2351"]
[BlackElo "2480"]
[Result "0-1"]
[Round "6"]
[TimeControl "180+2"]
[Date "2023.07.18"]
[WhiteClock "0:00:04"]
[BlackClock "0:00:05"]
[Board "113"]

1. e4 {[%clk 0:02:53]}  e6 {[%clk 0:02:59]} 2. Nf3 {[%clk 0:02:52]}  d5 {[%clk 0:02:59]} 3. Nc3 {[%clk 0:02:53]}  Nf6 {[%clk 0:02:58]} 4. e5 {[%clk 0:02:53]}  Nfd7 {[%clk 0:02:59]} 5. d4 {[%clk 0:02:54]}  c5 {[%clk 0:02:59]} 6. dxc5 {[%clk 0:02:54]}  Bxc5 {[%clk 0:02:59]} 7. Bd3 {[%clk 0:02:54]}  a6 {[%clk 0:02:58]} 8. O-O {[%clk 0:02:47]}  Nc6 {[%clk 0:02:59]} 9. Bf4 {[%clk 0:02:44]}  b5 {[%clk 0:02:58]} 10. a3 {[%clk 0:02:33]}  h6 {[%clk 0:02:58]} 11. h3 {[%clk 0:02:24]}  O-O {[%clk 0:02:39]} 12. Re1 {[%clk 0:02:18]}  f5 {[%clk 0:02:21]} 13. exf6 {[%clk 0:01:34]}  Qxf6 {[%clk 0:02:20]} 14. Bg3 {[%clk 0:01:30]}  Bb7 {[%clk 0:02:05]} 15. Qe2 {[%clk 0:01:15]}  Rae8 {[%clk 0:02:04]} 16. Nh2 {[%clk 0:00:26]}  Nd4 {[%clk 0:01:50]} 17. Qd2 {[%clk 0:00:22]}  h5 {[%clk 0:01:31]} 18. b4 {[%clk 0:00:20]}  Bb6 {[%clk 0:01:28]} 19. Ne2 {[%clk 0:00:18]}  h4 {[%clk 0:01:25]} 20. Ng4 {[%clk 0:00:11]}  Qe7 {[%clk 0:01:11]} 21. Be5 {[%clk 0:00:10]}  Nxe5 {[%clk 0:01:08]} 22. Nxe5 {[%clk 0:00:11]}  Rxf2 {[%clk 0:00:44]} 23. Kh1 {[%clk 0:00:03]}  Qc7 {[%clk 0:00:17]} 24. Ng4 {[%clk 0:00:02]}  Rff8 {[%clk 0:00:11]} 25. Nxd4 {[%clk 0:00:02]}  Bxd4 {[%clk 0:00:11]} 26. Rad1 {[%clk 0:00:02]}  e5 {[%clk 0:00:11]} 27. Qg5 {[%clk 0:00:02]}  e4 {[%clk 0:00:06]} 28. Bf1 {[%clk 0:00:02]}  Bf6 {[%clk 0:00:01]} 29. Nxf6+ {[%clk 0:00:02]}  Rxf6 {[%clk 0:00:01]} 30. Qh5 {[%clk 0:00:03]}  Qf7 {[%clk 0:00:02]} 31. Qxh4 {[%clk 0:00:03]}  Rf8 {[%clk 0:00:02]} 32. Qg3 {[%clk 0:00:03]}  d4 {[%clk 0:00:02]} 33. Kh2 {[%clk 0:00:03]}  e3 {[%clk 0:00:02]} 34. Bd3 {[%clk 0:00:03]}  Rf2 {[%clk 0:00:02]} 35. Qh4 {[%clk 0:00:03]}  Rxg2+ {[%clk 0:00:02]} 36. Kh1 {[%clk 0:00:03]}  Rg4+ {[%clk 0:00:03]} 37. Kh2 {[%clk 0:00:03]}  Rxh4 {[%clk 0:00:03]} 38. Rf1 {[%clk 0:00:04]}  Rf4 {[%clk 0:00:03]} 39. Rxf4 {[%clk 0:00:05]}  Qxf4+ {[%clk 0:00:04]} 40. Kg1 {[%clk 0:00:04]}  Qf2# {[%clk 0:00:05]} 0-1


[Site "https://www.chess.com"]

[Event "Titled Tuesday Blitz July 18 Late 2023"]
[White "Petukhov, Dmitry"]
[Black "Adireddy Arjun"]
[WhiteFideId "4142748"]
[BlackFideId "25647709"]
[WhiteElo "2478"]
[BlackElo "2351"]
[Result "0-1"]
[Round "6"]
[TimeControl "180+2"]
[Date "2023.07.18"]
[WhiteClock "0:00:33"]
[BlackClock "0:00:05"]
[Board "114"]

1. e4 {[%clk 0:02:59]}  c6 {[%clk 0:02:58]} 2. d4 {[%clk 0:02:57]}  d5 {[%clk 0:02:59]} 3. Nd2 {[%clk 0:02:58]}  dxe4 {[%clk 0:02:59]} 4. Nxe4 {[%clk 0:02:59]}  Nf6 {[%clk 0:02:59]} 5. Nxf6+ {[%clk 0:02:59]}  exf6 {[%clk 0:03:00]} 6. c3 {[%clk 0:03:00]}  Bd6 {[%clk 0:03:00]} 7. Bd3 {[%clk 0:03:00]}  O-O {[%clk 0:02:57]} 8. Qh5 {[%clk 0:03:00]}  g6 {[%clk 0:02:55]} 9. Qh4 {[%clk 0:03:00]}  Re8+ {[%clk 0:02:50]} 10. Ne2 {[%clk 0:03:00]}  f5 {[%clk 0:02:30]} 11. Bg5 {[%clk 0:02:59]}  Be7 {[%clk 0:02:29]} 12. Bxe7 {[%clk 0:03:00]}  Qxe7 {[%clk 0:02:30]} 13. Qxe7 {[%clk 0:03:00]}  Rxe7 {[%clk 0:02:31]} 14. Kd2 {[%clk 0:03:01]}  Nd7 {[%clk 0:02:30]} 15. Rhe1 {[%clk 0:03:02]}  Nf6 {[%clk 0:02:30]} 16. f3 {[%clk 0:03:02]}  Bd7 {[%clk 0:02:29]} 17. Nf4 {[%clk 0:03:02]}  Rae8 {[%clk 0:02:29]} 18. Rxe7 {[%clk 0:03:02]}  Rxe7 {[%clk 0:02:30]} 19. Re1 {[%clk 0:03:03]}  Rxe1 {[%clk 0:02:30]} 20. Kxe1 {[%clk 0:03:04]}  Kf8 {[%clk 0:02:31]} 21. b4 {[%clk 0:03:03]}  Ke7 {[%clk 0:02:31]} 22. Kd2 {[%clk 0:03:04]}  Kd6 {[%clk 0:02:31]} 23. c4 {[%clk 0:03:03]}  Be6 {[%clk 0:02:27]} 24. Kc3 {[%clk 0:03:03]}  h5 {[%clk 0:02:26]} 25. h4 {[%clk 0:03:02]}  b6 {[%clk 0:02:20]} 26. a3 {[%clk 0:03:00]}  Kc7 {[%clk 0:02:17]} 27. c5 {[%clk 0:02:58]}  b5 {[%clk 0:01:59]} 28. Bc2 {[%clk 0:02:54]}  Nd5+ {[%clk 0:01:52]} 29. Nxd5+ {[%clk 0:02:51]}  Bxd5 {[%clk 0:01:53]} 30. Kd2 {[%clk 0:02:44]}  f4 {[%clk 0:01:23]} 31. Be4 {[%clk 0:02:41]}  Be6 {[%clk 0:01:01]} 32. Ke1 {[%clk 0:02:40]}  Kd7 {[%clk 0:00:57]} 33. Kf2 {[%clk 0:02:39]}  Bd5 {[%clk 0:00:42]} 34. g3 {[%clk 0:02:33]}  fxg3+ {[%clk 0:00:40]} 35. Kxg3 {[%clk 0:02:33]}  Ke6 {[%clk 0:00:40]} 36. Kf4 {[%clk 0:02:33]}  Bxe4 {[%clk 0:00:18]} 37. Kxe4 {[%clk 0:02:34]}  f6 {[%clk 0:00:09]} 38. d5+ {[%clk 0:02:04]}  cxd5+ {[%clk 0:00:08]} 39. Kd4 {[%clk 0:02:04]}  g5 {[%clk 0:00:08]} 40. f4 {[%clk 0:01:54]}  gxh4 {[%clk 0:00:03]} 41. f5+ {[%clk 0:01:53]}  Kd7 {[%clk 0:00:03]} 42. Ke3 {[%clk 0:01:48]}  h3 {[%clk 0:00:03]} 43. Kf3 {[%clk 0:01:47]}  d4 {[%clk 0:00:04]} 44. Kg3 {[%clk 0:01:47]}  d3 {[%clk 0:00:04]} 45. Kxh3 {[%clk 0:01:48]}  d2 {[%clk 0:00:05]} 46. Kg3 {[%clk 0:01:49]}  d1=Q {[%clk 0:00:05]} 47. Kf4 {[%clk 0:00:33]}  Qg4+ {[%clk 0:00:05]} 0-1


[Site "https://www.chess.com"]

[Event "Titled Tuesday Blitz July 18 Late 2023"]
[White "AndresDelgado77"]
[Black "Toniutti, Ezio"]
[BlackFideId "113034"]
[WhiteElo "2346"]
[BlackElo "2467"]
[Result "0-1"]
[Round "6"]
[TimeControl "180+2"]
[Date "2023.07.18"]
[WhiteClock "0:00:00"]
[BlackClock "0:00:17"]
[Board "116"]

1. e4 {[%clk 0:03:00]}  e5 {[%clk 0:02:34]} 2. Nc3 {[%clk 0:02:59]}  Nf6 {[%clk 0:02:33]} 3. d4 {[%clk 0:02:59]}  exd4 {[%clk 0:02:32]} 4. Qxd4 {[%clk 0:02:59]}  Nc6 {[%clk 0:02:32]} 5. Qc4 {[%clk 0:02:59]}  Bb4 {[%clk 0:02:29]} 6. Bd2 {[%clk 0:02:57]}  d6 {[%clk 0:02:28]} 7. O-O-O {[%clk 0:02:54]}  Be6 {[%clk 0:02:28]} 8. Qe2 {[%clk 0:02:53]}  O-O {[%clk 0:02:25]} 9. f3 {[%clk 0:02:27]}  Re8 {[%clk 0:02:15]} 10. g4 {[%clk 0:02:24]}  d5 {[%clk 0:02:10]} 11. g5 {[%clk 0:02:21]}  Nd7 {[%clk 0:01:58]} 12. exd5 {[%clk 0:01:29]}  Bxd5 {[%clk 0:01:49]} 13. Qf2 {[%clk 0:01:20]}  Be6 {[%clk 0:01:46]} 14. Qh4 {[%clk 0:01:12]}  Qe7 {[%clk 0:01:42]} 15. Nge2 {[%clk 0:01:00]}  Nde5 {[%clk 0:01:38]} 16. Bg2 {[%clk 0:00:55]}  Qc5 {[%clk 0:01:30]} 17. Ne4 {[%clk 0:00:47]}  Nd3+ {[%clk 0:01:13]} 18. Kb1 {[%clk 0:00:46]}  Bxa2+ {[%clk 0:01:13]} 19. Kxa2 {[%clk 0:00:39]}  Qa5+ {[%clk 0:01:12]} 20. Kb1 {[%clk 0:00:36]}  Nxb2 {[%clk 0:00:57]} 21. Kxb2 {[%clk 0:00:31]}  Rad8 {[%clk 0:00:52]} 22. Bc3 {[%clk 0:00:19]}  Qb5 {[%clk 0:00:44]} 23. Nd4 {[%clk 0:00:10]}  Bxc3+ {[%clk 0:00:40]} 24. Kxc3 {[%clk 0:00:08]}  Qb4+ {[%clk 0:00:40]} 25. Kd3 {[%clk 0:00:06]}  Rxd4+ {[%clk 0:00:29]} 26. Ke3 {[%clk 0:00:06]}  Qa3+ {[%clk 0:00:18]} 27. Rd3 {[%clk 0:00:04]}  Rxd3+ {[%clk 0:00:17]} 28. cxd3 {[%clk 0:00:00]}  Qb2 {[%clk 0:00:17]} 0-1


[Site "https://www.chess.com"]

[Event "Titled Tuesday Blitz July 18 Late 2023"]
[White "Arnold, Ken"]
[Black "Rama, Tejas"]
[WhiteFideId "2056836"]
[BlackFideId "30907381"]
[WhiteElo "2422"]
[BlackElo "2463"]
[Result "1-0"]
[Round "6"]
[TimeControl "180+2"]
[Date "2023.07.18"]
[WhiteClock "0:00:12"]
[BlackClock "0:00:06"]
[Board "117"]

1. e4 {[%clk 0:03:00]}  c5 {[%clk 0:02:47]} 2. Nf3 {[%clk 0:03:00]}  d6 {[%clk 0:02:47]} 3. d4 {[%clk 0:03:00]}  cxd4 {[%clk 0:02:44]} 4. Qxd4 {[%clk 0:03:00]}  Nf6 {[%clk 0:02:42]} 5. e5 {[%clk 0:02:59]}  Nc6 {[%clk 0:02:39]} 6. Bb5 {[%clk 0:02:59]}  Qa5+ {[%clk 0:02:39]} 7. Nc3 {[%clk 0:02:59]}  Qxb5 {[%clk 0:02:39]} 8. Nxb5 {[%clk 0:02:59]}  Nxd4 {[%clk 0:02:39]} 9. Nbxd4 {[%clk 0:02:57]}  dxe5 {[%clk 0:02:36]} 10. Nxe5 {[%clk 0:02:57]}  g6 {[%clk 0:02:35]} 11. b3 {[%clk 0:02:42]}  Bg7 {[%clk 0:02:32]} 12. Bb2 {[%clk 0:02:42]}  O-O {[%clk 0:02:32]} 13. O-O-O {[%clk 0:02:42]}  a6 {[%clk 0:02:13]} 14. f3 {[%clk 0:02:41]}  b5 {[%clk 0:02:08]} 15. Ndc6 {[%clk 0:02:34]}  Re8 {[%clk 0:02:01]} 16. Rhe1 {[%clk 0:02:29]}  Be6 {[%clk 0:01:48]} 17. Kb1 {[%clk 0:02:19]}  Nd5 {[%clk 0:01:29]} 18. Nd4 {[%clk 0:02:15]}  Nc7 {[%clk 0:01:15]} 19. Nxe6 {[%clk 0:02:11]}  Nxe6 {[%clk 0:01:15]} 20. g3 {[%clk 0:02:07]}  Rad8 {[%clk 0:01:11]} 21. Rxd8 {[%clk 0:02:02]}  Rxd8 {[%clk 0:01:12]} 22. Nc6 {[%clk 0:01:59]}  Rd7 {[%clk 0:01:11]} 23. Bxg7 {[%clk 0:01:57]}  Kxg7 {[%clk 0:01:10]} 24. f4 {[%clk 0:01:29]}  Rd2 {[%clk 0:00:59]} 25. Nxe7 {[%clk 0:01:22]}  Rxh2 {[%clk 0:00:59]} 26. f5 {[%clk 0:01:08]}  Nd4 {[%clk 0:00:56]} 27. fxg6 {[%clk 0:00:58]}  fxg6 {[%clk 0:00:49]} 28. c3 {[%clk 0:00:43]}  Nf3 {[%clk 0:00:45]} 29. Re3 {[%clk 0:00:34]}  Rf2 {[%clk 0:00:34]} 30. Nd5 {[%clk 0:00:30]}  h5 {[%clk 0:00:32]} 31. c4 {[%clk 0:00:29]}  bxc4 {[%clk 0:00:31]} 32. bxc4 {[%clk 0:00:28]}  Nd2+ {[%clk 0:00:31]} 33. Kc1 {[%clk 0:00:25]}  Nxc4 {[%clk 0:00:31]} 34. Re7+ {[%clk 0:00:24]}  Kh6 {[%clk 0:00:31]} 35. Re6 {[%clk 0:00:22]}  Rxa2 {[%clk 0:00:19]} 36. Nf4 {[%clk 0:00:21]}  Kg5 {[%clk 0:00:16]} 37. Rxg6+ {[%clk 0:00:21]}  Kf5 {[%clk 0:00:16]} 38. Rc6 {[%clk 0:00:20]}  Ne5 {[%clk 0:00:15]} 39. Rc5 {[%clk 0:00:18]}  h4 {[%clk 0:00:14]} 40. Nd3 {[%clk 0:00:16]}  hxg3 {[%clk 0:00:08]} 41. Rxe5+ {[%clk 0:00:17]}  Kg4 {[%clk 0:00:09]} 42. Re8 {[%clk 0:00:15]}  g2 {[%clk 0:00:09]} 43. Rg8+ {[%clk 0:00:15]}  Kf3 {[%clk 0:00:09]} 44. Ne1+ {[%clk 0:00:15]}  Ke4 {[%clk 0:00:07]} 45. Nxg2 {[%clk 0:00:16]}  Ra1+ {[%clk 0:00:07]} 46. Kb2 {[%clk 0:00:16]}  Rg1 {[%clk 0:00:08]} 47. Re8+ {[%clk 0:00:14]}  Kd5 {[%clk 0:00:08]} 48. Ne3+ {[%clk 0:00:14]}  Kc5 {[%clk 0:00:08]} 49. Nc2 {[%clk 0:00:15]}  Rg3 {[%clk 0:00:08]} 50. Rb8 {[%clk 0:00:15]}  Rg4 {[%clk 0:00:08]} 51. Ka3 {[%clk 0:00:14]}  Rg3+ {[%clk 0:00:08]} 52. Ka4 {[%clk 0:00:14]}  Rg4+ {[%clk 0:00:08]} 53. Nb4 {[%clk 0:00:13]}  Rg6 {[%clk 0:00:06]} 54. Ka5 {[%clk 0:00:12]}  Kc4 {[%clk 0:00:06]} 55. Nxa6 {[%clk 0:00:12]}  Rg5+ {[%clk 0:00:07]} 56. Ka4 {[%clk 0:00:12]}  Rg4 {[%clk 0:00:06]} 57. Rb4+ {[%clk 0:00:12]} 1-0


[Site "https://www.chess.com"]